[Event "*** Titled Tuesday Blitz"]
[Site "Chess.com"]
[Date "2020.05.05"]
[Round "8"]
[White "Caterpiller35"]
[Black "Witaliss"]
[Result "1-0"]
[WhiteElo "2314"]
[BlackElo "2446"]
[TimeControl "180+1"]
[EndTime "11:35:15 PDT"]
[Termination "Caterpiller35 won by resignation"]

1. d4 {[%clk 0:03:00]} 1... c6 {[%clk 0:03:00.9]} 2. Bf4 {[%clk 0:02:57.2]} 2...
Qb6 {[%clk 0:02:58.8]} 3. e3 {[%clk 0:02:51]} 3... Qxb2 {[%clk 0:02:55]} 4. Nd2
{[%clk 0:02:51.2]} 4... Qb6 {[%clk 0:02:53.5]} 5. Ngf3 {[%clk 0:02:50.1]} 5...
Nf6 {[%clk 0:02:52.5]} 6. Bd3 {[%clk 0:02:50.2]} 6... Nd5 {[%clk 0:02:49.7]} 7.
Bxb8 {[%clk 0:02:46.5]} 7... Rxb8 {[%clk 0:02:48.7]} 8. c4 {[%clk 0:02:46.8]}
8... Nf6 {[%clk 0:02:47.5]} 9. O-O {[%clk 0:02:45.5]} 9... d6 {[%clk 0:02:45.9]}
10. e4 {[%clk 0:02:45.5]} 10... Qc7 {[%clk 0:02:43]} 11. Re1 {[%clk 0:02:39.9]}
11... e5 {[%clk 0:02:41.2]} 12. c5 {[%clk 0:02:32]} 12... dxc5 {[%clk
0:02:37.8]} 13. dxe5 {[%clk 0:02:29.9]} 13... Nd7 {[%clk 0:02:34.5]} 14. e6
{[%clk 0:02:13]} 14... fxe6 {[%clk 0:02:33.5]} 15. Ng5 {[%clk 0:02:06.5]} 15...
Ne5 {[%clk 0:02:31.4]} 16. Qh5+ {[%clk 0:01:44.9]} 16... g6 {[%clk 0:02:29.5]}
17. Qh3 {[%clk 0:01:44.9]} 17... Be7 {[%clk 0:02:23.2]} 18. f4 {[%clk
0:01:04.2]} 18... Bxg5 {[%clk 0:02:20.2]} 19. fxg5 {[%clk 0:01:01.9]} 19... Qd6
{[%clk 0:02:15.1]} 20. Re3 {[%clk 0:00:50.2]} 20... Qd4 {[%clk 0:02:14]} 21. Nb3
{[%clk 0:00:48.1]} 21... Qd6 {[%clk 0:02:09.2]} 22. Rd1 {[%clk 0:00:24.9]} 22...
O-O {[%clk 0:02:04.3]} 23. Bc2 {[%clk 0:00:23.9]} 23... Qe7 {[%clk 0:02:03.3]}
24. Qg3 {[%clk 0:00:22.1]} 24... Nd7 {[%clk 0:01:54.4]} 25. e5 {[%clk
0:00:19.7]} 25... Nb6 {[%clk 0:01:49.6]} 26. Nd2 {[%clk 0:00:17.2]} 26... Nd5
{[%clk 0:01:48.5]} 27. Ne4 {[%clk 0:00:17.5]} 27... Nxe3 {[%clk 0:01:44.2]} 28.
Nf6+ {[%clk 0:00:16.4]} 28... Kh8 {[%clk 0:01:31.7]} 29. Qxe3 {[%clk 0:00:16.3]}
29... b6 {[%clk 0:01:31.7]} 30. h4 {[%clk 0:00:15.4]} 30... Rf7 {[%clk
0:01:28.4]} 31. Rd6 {[%clk 0:00:14.8]} 31... Bb7 {[%clk 0:01:24.4]} 32. h5
{[%clk 0:00:12.4]} 32... gxh5 {[%clk 0:01:22.6]} 33. Qh3 {[%clk 0:00:11.5]}
33... Rd8 {[%clk 0:01:20.2]} 34. Qxh5 {[%clk 0:00:10.3]} 34... Rg7 {[%clk
0:01:15.1]} 35. Qd1 {[%clk 0:00:08.6]} 35... Rxd6 {[%clk 0:01:11.2]} 36. exd6
{[%clk 0:00:09.5]} 36... Qd8 {[%clk 0:01:11]} 37. Qh5 {[%clk 0:00:04.7]} 37...
Qxd6 {[%clk 0:01:01.3]} 38. Qe8+ {[%clk 0:00:04.4]} 1-0

[Event "*** Titled Tuesday Blitz"]
[Site "Chess.com"]
[Date "2020.05.05"]
[Round "8"]
[White "MarcoRiehle"]
[Black "LiderChessAcademy"]
[Result "1-0"]
[WhiteElo "2611"]
[BlackElo "2455"]
[TimeControl "180+1"]
[EndTime "11:35:16 PDT"]
[Termination "MarcoRiehle won by resignation"]

1. e4 {[%clk 0:03:00.9]} 1... c5 {[%clk 0:02:59.7]} 2. a3 {[%clk 0:02:59.4]}
2... g6 {[%clk 0:02:56]} 3. h4 {[%clk 0:02:58.7]} 3... h5 {[%clk 0:02:51.7]} 4.
Nc3 {[%clk 0:02:58]} 4... Bg7 {[%clk 0:02:50]} 5. Bc4 {[%clk 0:02:56.9]} 5...
Nc6 {[%clk 0:02:47.4]} 6. d3 {[%clk 0:02:56.8]} 6... a6 {[%clk 0:02:44]} 7. Nf3
{[%clk 0:02:51.4]} 7... b5 {[%clk 0:02:38.4]} 8. Ba2 {[%clk 0:02:50.6]} 8... e6
{[%clk 0:02:31.8]} 9. Bg5 {[%clk 0:02:49.7]} 9... Nge7 {[%clk 0:02:29.9]} 10.
Qd2 {[%clk 0:02:49.3]} 10... Bb7 {[%clk 0:02:23.8]} 11. O-O {[%clk 0:02:43.8]}
11... Nd4 {[%clk 0:02:04.4]} 12. Nxd4 {[%clk 0:02:39.5]} 12... cxd4 {[%clk
0:02:05.3]} 13. Ne2 {[%clk 0:02:38.6]} 13... Qb6 {[%clk 0:01:30.8]} 14. Bxe7
{[%clk 0:02:33.6]} 14... Kxe7 {[%clk 0:01:29.3]} 15. f4 {[%clk 0:02:34.2]} 15...
Bf6 {[%clk 0:01:18.6]} 16. f5 {[%clk 0:02:29.7]} 16... gxf5 {[%clk 0:01:16.7]}
17. exf5 {[%clk 0:02:26.2]} 17... Rag8 {[%clk 0:01:15.5]} 18. Nf4 {[%clk
0:02:17.1]} 18... Be5 {[%clk 0:01:10.6]} 19. Rf2 {[%clk 0:02:10.3]} 19... Rg4
{[%clk 0:01:09]} 20. fxe6 {[%clk 0:01:42.4]} 20... dxe6 {[%clk 0:00:59.7]} 21.
Nh3 {[%clk 0:01:41.6]} 21... Rhg8 {[%clk 0:00:52.6]} 22. Ng5 {[%clk 0:01:29]}
22... Rxh4 {[%clk 0:00:26.5]} 23. Rxf7+ {[%clk 0:01:27.6]} 23... Ke8 {[%clk
0:00:26.6]} 24. Bxe6 {[%clk 0:00:51.5]} 24... Bh2+ {[%clk 0:00:19.5]} 25. Kf1
{[%clk 0:00:47.2]} 25... Bg3 {[%clk 0:00:16.5]} 26. Bd7+ {[%clk 0:00:28.5]}
26... Kd8 {[%clk 0:00:14.8]} 27. Ne6+ {[%clk 0:00:29]} 27... Qxe6 {[%clk
0:00:14.8]} 28. Bxe6 {[%clk 0:00:29.9]} 28... Rh1+ {[%clk 0:00:13.7]} 29. Ke2
{[%clk 0:00:30.4]} 29... Rxa1 {[%clk 0:00:14.3]} 30. Qa5+ {[%clk 0:00:28.6]}
30... Ke8 {[%clk 0:00:13.2]} 31. Rxb7 {[%clk 0:00:27.3]} 31... Rg6 {[%clk
0:00:12.9]} 32. Bf7+ {[%clk 0:00:19.8]} 1-0

[Event "*** Titled Tuesday Blitz"]
[Site "Chess.com"]
[Date "2020.05.05"]
[Round "8"]
[White "JozefKneht"]
[Black "drinbet"]
[Result "1-0"]
[WhiteElo "2465"]
[BlackElo "2304"]
[TimeControl "180+1"]
[EndTime "11:35:16 PDT"]
[Termination "JozefKneht won by resignation"]

1. e4 {[%clk 0:03:00.9]} 1... c5 {[%clk 0:02:19.6]} 2. Nf3 {[%clk 0:02:59]} 2...
e6 {[%clk 0:02:19.9]} 3. d4 {[%clk 0:02:59.4]} 3... cxd4 {[%clk 0:02:20.2]} 4.
Nxd4 {[%clk 0:02:59.9]} 4... Nf6 {[%clk 0:02:20.9]} 5. Nc3 {[%clk 0:02:59.1]}
5... d6 {[%clk 0:02:21.5]} 6. Be2 {[%clk 0:02:58.4]} 6... a6 {[%clk 0:02:21.9]}
7. O-O {[%clk 0:02:58.9]} 7... Qc7 {[%clk 0:02:22.5]} 8. a4 {[%clk 0:02:52.8]}
8... Nc6 {[%clk 0:02:22]} 9. f4 {[%clk 0:02:53.3]} 9... Nxd4 {[%clk 0:02:20.9]}
10. Qxd4 {[%clk 0:02:52.6]} 10... d5 {[%clk 0:02:21.5]} 11. Be3 {[%clk
0:02:52.7]} 11... dxe4 {[%clk 0:02:16.1]} 12. Nxe4 {[%clk 0:02:52.8]} 12... Nxe4
{[%clk 0:02:15.9]} 13. Qxe4 {[%clk 0:02:52.3]} 13... Bc5 {[%clk 0:02:14.8]} 14.
f5 {[%clk 0:02:41.6]} 14... O-O {[%clk 0:01:55.9]} 15. f6 {[%clk 0:02:40]} 15...
g6 {[%clk 0:01:56]} 16. Kh1 {[%clk 0:02:29.1]} 16... Re8 {[%clk 0:01:51.5]} 17.
Rad1 {[%clk 0:02:22.6]} 17... e5 {[%clk 0:01:48.3]} 18. Bxc5 {[%clk 0:02:18.8]}
18... Qxc5 {[%clk 0:01:47.6]} 19. Rd5 {[%clk 0:02:19.2]} 19... Qc6 {[%clk
0:01:40.4]} 20. Qh4 {[%clk 0:02:12.6]} 20... h5 {[%clk 0:01:09.9]} 21. Qg5
{[%clk 0:02:01.7]} 21... Kh7 {[%clk 0:01:07.4]} 22. Bxh5 {[%clk 0:01:42.9]}
22... Qxd5 {[%clk 0:01:01.6]} 23. Bxg6+ {[%clk 0:01:41.9]} 23... fxg6 {[%clk
0:01:01]} 24. Qh4+ {[%clk 0:01:22.3]} 24... Kg8 {[%clk 0:01:00.2]} 25. f7+
{[%clk 0:01:21.6]} 25... Qxf7 {[%clk 0:01:00.1]} 26. Rxf7 {[%clk 0:01:21.3]}
26... Kxf7 {[%clk 0:01:00.4]} 27. Qh7+ {[%clk 0:01:19.6]} 27... Kf6 {[%clk
0:01:00.4]} 28. Kg1 {[%clk 0:01:17.2]} 28... Re7 {[%clk 0:01:00.3]} 29. Qh8+
{[%clk 0:01:16.5]} 29... Ke6 {[%clk 0:00:59.5]} 30. Kf2 {[%clk 0:01:15.5]} 30...
Kd6 {[%clk 0:00:58.5]} 31. Ke3 {[%clk 0:01:14.9]} 31... b5 {[%clk 0:00:52.1]}
32. Qd8+ {[%clk 0:01:13.2]} 32... Rd7 {[%clk 0:00:51.5]} 33. Qb6+ {[%clk
0:01:10.1]} 33... Ke7 {[%clk 0:00:50.6]} 34. Qxg6 {[%clk 0:01:09.8]} 34... Bb7
{[%clk 0:00:50.7]} 35. h4 {[%clk 0:01:08.9]} 35... e4 {[%clk 0:00:50.4]} 36. h5
{[%clk 0:01:08.8]} 36... Re8 {[%clk 0:00:49.1]} 37. h6 {[%clk 0:01:08.6]} 37...
Kd8 {[%clk 0:00:49]} 38. g4 {[%clk 0:01:04.8]} 38... Kc7 {[%clk 0:00:48.1]} 39.
g5 {[%clk 0:00:59.1]} 39... bxa4 {[%clk 0:00:47.9]} 40. Qf6 {[%clk 0:00:56]}
40... Rd6 {[%clk 0:00:45.1]} 41. Qg7+ {[%clk 0:00:53.2]} 41... Kc8 {[%clk
0:00:44.2]} 42. h7 {[%clk 0:00:52.9]} 42... Rdd8 {[%clk 0:00:43.3]} 43. g6
{[%clk 0:00:52.4]} 43... Bd5 {[%clk 0:00:41.6]} 44. Qc3+ {[%clk 0:00:50.8]}
44... Kd7 {[%clk 0:00:41.1]} 45. Qc5 {[%clk 0:00:46.9]} 45... Ke6 {[%clk
0:00:41.1]} 46. g7 {[%clk 0:00:46.6]} 46... Ke5 {[%clk 0:00:37.8]} 47. Qb6
{[%clk 0:00:43.9]} 47... Rc8 {[%clk 0:00:36.5]} 48. Qd4+ {[%clk 0:00:42]} 48...
Ke6 {[%clk 0:00:36.2]} 49. c4 {[%clk 0:00:35.2]} 49... Rxc4 {[%clk 0:00:35]} 50.
g8=Q+ {[%clk 0:00:34.3]} 1-0

[Event "*** Titled Tuesday Blitz"]
[Site "Chess.com"]
[Date "2020.05.05"]
[Round "8"]
[White "dbrankovic68"]
[Black "Gahan-MG"]
[Result "0-1"]
[WhiteElo "2455"]
[BlackElo "2605"]
[TimeControl "180+1"]
[EndTime "11:35:17 PDT"]
[Termination "Gahan-MG won by resignation"]

1. e4 {[%clk 0:03:00.9]} 1... c5 {[%clk 0:02:59.8]} 2. Nf3 {[%clk 0:02:59.8]}
2... e6 {[%clk 0:03:00]} 3. d4 {[%clk 0:02:59.7]} 3... cxd4 {[%clk 0:03:00.9]}
4. Nxd4 {[%clk 0:03:00.2]} 4... a6 {[%clk 0:03:01.5]} 5. Nc3 {[%clk 0:03:00.6]}
5... b5 {[%clk 0:03:01.3]} 6. Bd3 {[%clk 0:03:00.6]} 6... Bb7 {[%clk 0:03:01.8]}
7. O-O {[%clk 0:03:00.3]} 7... Qb6 {[%clk 0:03:01.3]} 8. Nb3 {[%clk 0:02:59.3]}
8... Qc7 {[%clk 0:03:01.3]} 9. Be3 {[%clk 0:02:59.1]} 9... Nf6 {[%clk
0:02:59.8]} 10. f4 {[%clk 0:02:58.4]} 10... b4 {[%clk 0:02:58.4]} 11. Na4 {[%clk
0:02:57.2]} 11... Nxe4 {[%clk 0:02:56.3]} 12. Nb6 {[%clk 0:02:39.7]} 12... Be7
{[%clk 0:02:38.6]} 13. Nxa8 {[%clk 0:02:36.9]} 13... Bxa8 {[%clk 0:02:39.5]} 14.
f5 {[%clk 0:02:27.8]} 14... O-O {[%clk 0:02:36.7]} 15. Qg4 {[%clk 0:02:19.1]}
15... Nf6 {[%clk 0:02:34.3]} 16. Qh3 {[%clk 0:02:18.6]} 16... e5 {[%clk
0:02:26.3]} 17. Nd2 {[%clk 0:02:11.1]} 17... d5 {[%clk 0:02:25.8]} 18. Rac1
{[%clk 0:02:05.5]} 18... a5 {[%clk 0:02:16.9]} 19. c3 {[%clk 0:02:01.4]} 19...
Qd7 {[%clk 0:02:12]} 20. Bg5 {[%clk 0:01:55.6]} 20... e4 {[%clk 0:02:09.4]} 21.
Be2 {[%clk 0:01:48.5]} 21... bxc3 {[%clk 0:02:06.6]} 22. bxc3 {[%clk 0:01:48.1]}
22... Nc6 {[%clk 0:02:06.7]} 23. Nb3 {[%clk 0:01:47.2]} 23... a4 {[%clk
0:02:03.1]} 24. Nd4 {[%clk 0:01:46.4]} 24... Nxd4 {[%clk 0:02:03.4]} 25. cxd4
{[%clk 0:01:46.2]} 25... Qa7 {[%clk 0:02:02]} 26. Rfd1 {[%clk 0:01:41.6]} 26...
a3 {[%clk 0:01:58.7]} 27. g4 {[%clk 0:01:31]} 27... h6 {[%clk 0:01:46]} 28. Bf4
{[%clk 0:01:27.2]} 28... Ne8 {[%clk 0:01:24.4]} 29. Qg3 {[%clk 0:01:10.3]} 29...
Bf6 {[%clk 0:01:16.2]} 30. Be5 {[%clk 0:01:05]} 30... Bg5 {[%clk 0:01:16.6]} 31.
Rc8 {[%clk 0:01:01.9]} 31... Bb7 {[%clk 0:01:15]} 32. Rc3 {[%clk 0:00:54.7]}
32... Be7 {[%clk 0:01:13.4]} 33. h4 {[%clk 0:00:51]} 33... f6 {[%clk 0:01:07.9]}
34. Bf4 {[%clk 0:00:49.9]} 34... Qa4 {[%clk 0:01:07.9]} 35. g5 {[%clk
0:00:47.4]} 35... fxg5 {[%clk 0:00:51.2]} 36. hxg5 {[%clk 0:00:47.5]} 36... Ba6
{[%clk 0:00:46]} 37. Bh5 {[%clk 0:00:42.6]} 37... Rxf5 {[%clk 0:00:42.2]} 38.
Bg4 {[%clk 0:00:22.9]} 38... Bxg5 {[%clk 0:00:36.8]} 39. Bxg5 {[%clk 0:00:18.3]}
39... Rxg5 {[%clk 0:00:36.6]} 40. Qb8 {[%clk 0:00:12.2]} 40... Qxd1+ {[%clk
0:00:33.2]} 0-1

[Event "*** Titled Tuesday Blitz"]
[Site "Chess.com"]
[Date "2020.05.05"]
[Round "8"]
[White "Nbk90"]
[Black "Loiacono_Antonio"]
[Result "1-0"]
[WhiteElo "2503"]
[BlackElo "2369"]
[TimeControl "180+1"]
[EndTime "11:35:17 PDT"]
[Termination "Nbk90 won on time"]

1. Nf3 {[%clk 0:03:00.9]} 1... d5 {[%clk 0:02:59.7]} 2. g3 {[%clk 0:03:00.8]}
2... Nf6 {[%clk 0:02:59.3]} 3. Bg2 {[%clk 0:03:01.7]} 3... c6 {[%clk 0:02:59.7]}
4. O-O {[%clk 0:03:01.7]} 4... Bg4 {[%clk 0:02:59.7]} 5. d3 {[%clk 0:03:01.7]}
5... e6 {[%clk 0:03:00]} 6. b3 {[%clk 0:03:01.7]} 6... Nbd7 {[%clk 0:02:59.9]}
7. Bb2 {[%clk 0:03:01.7]} 7... Be7 {[%clk 0:03:00.6]} 8. c4 {[%clk 0:03:01]}
8... O-O {[%clk 0:03:00.3]} 9. Nbd2 {[%clk 0:03:00.8]} 9... Re8 {[%clk 0:02:57]}
10. Qc2 {[%clk 0:03:00.3]} 10... Rc8 {[%clk 0:02:55.3]} 11. e4 {[%clk
0:02:51.7]} 11... dxe4 {[%clk 0:02:50.9]} 12. dxe4 {[%clk 0:02:52.6]} 12... Nc5
{[%clk 0:02:43.2]} 13. Rad1 {[%clk 0:02:07.1]} 13... Qb6 {[%clk 0:02:07.3]} 14.
Bc3 {[%clk 0:01:49.4]} 14... Rcd8 {[%clk 0:02:03.1]} 15. b4 {[%clk 0:01:38.3]}
15... Nd3 {[%clk 0:01:44.3]} 16. a3 {[%clk 0:01:31.2]} 16... a5 {[%clk
0:01:41.7]} 17. c5 {[%clk 0:01:24.5]} 17... Qc7 {[%clk 0:01:39.7]} 18. e5 {[%clk
0:01:21]} 18... Nh5 {[%clk 0:00:50]} 19. Nc4 {[%clk 0:01:16.6]} 19... axb4
{[%clk 0:00:47.8]} 20. axb4 {[%clk 0:01:16.1]} 20... Bf5 {[%clk 0:00:44.8]} 21.
Qe2 {[%clk 0:01:15.2]} 21... Ndf4 {[%clk 0:00:12.9]} 22. gxf4 {[%clk 0:01:08]}
22... Nxf4 {[%clk 0:00:13.8]} 23. Qe3 {[%clk 0:01:06.7]} 23... Nd5 {[%clk
0:00:12]} 24. Qc1 {[%clk 0:01:01.8]} 24... b5 {[%clk 0:00:11.8]} 25. Nd6 {[%clk
0:01:01.1]} 25... Bxd6 {[%clk 0:00:09.9]} 26. exd6 {[%clk 0:01:00.2]} 26... Qc8
{[%clk 0:00:10.3]} 27. Nd4 {[%clk 0:00:59.5]} 27... Bg6 {[%clk 0:00:10]} 28.
Rfe1 {[%clk 0:00:52]} 28... e5 {[%clk 0:00:05.7]} 29. Nxc6 {[%clk 0:00:51.1]}
29... Nf4 {[%clk 0:00:03.1]} 30. Qxf4 {[%clk 0:00:35.7]} 30... exf4 {[%clk
0:00:01.5]} 31. Rxe8+ {[%clk 0:00:35.1]} 1-0

[Event "*** Titled Tuesday Blitz"]
[Site "Chess.com"]
[Date "2020.05.05"]
[Round "8"]
[White "Boliviar"]
[Black "Winehouse83"]
[Result "0-1"]
[WhiteElo "2323"]
[BlackElo "2510"]
[TimeControl "180+1"]
[EndTime "11:35:17 PDT"]
[Termination "Winehouse83 won by resignation"]

1. e4 {[%clk 0:03:00.9]} 1... c5 {[%clk 0:02:59.8]} 2. Nc3 {[%clk 0:03:00.9]}
2... e6 {[%clk 0:02:59.4]} 3. Nge2 {[%clk 0:03:00.1]} 3... Nc6 {[%clk 0:02:59]}
4. g3 {[%clk 0:02:59.7]} 4... d5 {[%clk 0:02:58.9]} 5. exd5 {[%clk 0:02:59.2]}
5... exd5 {[%clk 0:02:59.8]} 6. Bg2 {[%clk 0:02:59.3]} 6... Nf6 {[%clk 0:03:00]}
7. d3 {[%clk 0:02:57.6]} 7... Be7 {[%clk 0:02:47.4]} 8. O-O {[%clk 0:02:55.1]}
8... h6 {[%clk 0:02:44.4]} 9. Re1 {[%clk 0:02:50.7]} 9... O-O {[%clk 0:02:42.6]}
10. h3 {[%clk 0:02:47.1]} 10... Re8 {[%clk 0:02:22.7]} 11. Nf4 {[%clk
0:02:41.1]} 11... d4 {[%clk 0:02:17.2]} 12. Ne4 {[%clk 0:02:37.9]} 12... Bf5
{[%clk 0:02:06.1]} 13. Nxf6+ {[%clk 0:02:22]} 13... Bxf6 {[%clk 0:02:07]} 14.
Rxe8+ {[%clk 0:02:19.6]} 14... Qxe8 {[%clk 0:02:07.9]} 15. Nd5 {[%clk 0:02:18]}
15... Be5 {[%clk 0:02:07.6]} 16. Bf4 {[%clk 0:02:16]} 16... Bxf4 {[%clk
0:02:05.5]} 17. Nxf4 {[%clk 0:02:13.6]} 17... Qd7 {[%clk 0:02:05.7]} 18. g4
{[%clk 0:02:06.7]} 18... Be6 {[%clk 0:02:02]} 19. a3 {[%clk 0:01:57]} 19... Re8
{[%clk 0:01:44]} 20. Qf3 {[%clk 0:01:55.7]} 20... Ne5 {[%clk 0:01:38.7]} 21. Qg3
{[%clk 0:01:22.4]} 21... Ng6 {[%clk 0:01:34.2]} 22. Nxe6 {[%clk 0:01:08.5]}
22... Qxe6 {[%clk 0:01:18.3]} 23. Be4 {[%clk 0:01:06]} 23... b6 {[%clk
0:01:10.8]} 24. b3 {[%clk 0:01:03.1]} 24... Qf6 {[%clk 0:01:07.6]} 25. Qc7
{[%clk 0:00:41.7]} 25... Nf4 {[%clk 0:00:37.8]} 26. Kh2 {[%clk 0:00:41.1]} 26...
g6 {[%clk 0:00:17.3]} 27. a4 {[%clk 0:00:35.9]} 27... Kg7 {[%clk 0:00:16.3]} 28.
a5 {[%clk 0:00:33.5]} 28... Re7 {[%clk 0:00:12.6]} 29. Qb8 {[%clk 0:00:32]}
29... Rxe4 {[%clk 0:00:07]} 30. dxe4 {[%clk 0:00:31]} 30... d3 {[%clk
0:00:07.3]} 31. e5 {[%clk 0:00:25]} 31... Qh4 {[%clk 0:00:06.8]} 32. Rf1 {[%clk
0:00:21.2]} 32... Qxh3+ {[%clk 0:00:07]} 0-1

[Event "*** Titled Tuesday Blitz"]
[Site "Chess.com"]
[Date "2020.05.05"]
[Round "8"]
[White "Bigfish1995"]
[Black "Alopekos"]
[Result "1-0"]
[WhiteElo "3086"]
[BlackElo "2477"]
[TimeControl "180+1"]
[EndTime "11:35:18 PDT"]
[Termination "Bigfish1995 won on time"]

1. d4 {[%clk 0:02:09]} 1... Nf6 {[%clk 0:02:59.7]} 2. c4 {[%clk 0:02:09.3]} 2...
e6 {[%clk 0:03:00.1]} 3. Nf3 {[%clk 0:02:10.1]} 3... d5 {[%clk 0:03:00.5]} 4. g3
{[%clk 0:02:10.8]} 4... Be7 {[%clk 0:03:00.9]} 5. Bg2 {[%clk 0:02:11.5]} 5...
O-O {[%clk 0:03:01.5]} 6. O-O {[%clk 0:02:12.2]} 6... dxc4 {[%clk 0:03:02.1]} 7.
Qc2 {[%clk 0:02:12]} 7... b5 {[%clk 0:03:02.6]} 8. a4 {[%clk 0:02:12.2]} 8... b4
{[%clk 0:03:02.9]} 9. Nfd2 {[%clk 0:02:10.4]} 9... c6 {[%clk 0:03:02.3]} 10.
Nxc4 {[%clk 0:02:10.2]} 10... Qxd4 {[%clk 0:03:02.8]} 11. Rd1 {[%clk 0:02:10.8]}
11... Qc5 {[%clk 0:03:03.1]} 12. Be3 {[%clk 0:02:10.1]} 12... Qh5 {[%clk
0:03:03.6]} 13. h3 {[%clk 0:02:09.5]} 13... Nd5 {[%clk 0:02:36.3]} 14. Bd4
{[%clk 0:02:00.9]} 14... c5 {[%clk 0:02:24.2]} 15. g4 {[%clk 0:02:00.5]} 15...
Qg6 {[%clk 0:02:16.9]} 16. Qxg6 {[%clk 0:01:39.8]} 16... hxg6 {[%clk 0:02:17.8]}
17. Be3 {[%clk 0:01:35.8]} 17... Nc6 {[%clk 0:02:11.8]} 18. Nbd2 {[%clk
0:01:35.2]} 18... Ba6 {[%clk 0:01:46.2]} 19. Rac1 {[%clk 0:01:34.5]} 19... Rfd8
{[%clk 0:00:36.9]} 20. Kf1 {[%clk 0:01:17.8]} 20... Rd7 {[%clk 0:00:22.1]} 21.
Bf4 {[%clk 0:01:15.8]} 21... Rad8 {[%clk 0:00:15.8]} 22. Bg3 {[%clk 0:01:16.1]}
22... Nd4 {[%clk 0:00:08]} 23. Ke1 {[%clk 0:01:14.9]} 23... Nb6 {[%clk
0:00:07.6]} 24. Ne5 {[%clk 0:01:00.2]} 24... Bxe2 {[%clk 0:00:07.3]} 25. Nxd7
{[%clk 0:00:58.5]} 25... Rxd7 {[%clk 0:00:08.2]} 26. a5 {[%clk 0:00:57.7]} 26...
Nd5 {[%clk 0:00:07]} 27. Nc4 {[%clk 0:00:53.6]} 27... Bxd1 {[%clk 0:00:06.6]}
28. Rxd1 {[%clk 0:00:53.4]} 28... g5 {[%clk 0:00:06.4]} 29. Kf1 {[%clk
0:00:47.9]} 29... Bf6 {[%clk 0:00:06.6]} 30. Bd6 {[%clk 0:00:46.5]} 30... Be7
{[%clk 0:00:05.8]} 31. Bb8 {[%clk 0:00:45]} 31... Nf4 {[%clk 0:00:05.6]} 32. Ne5
{[%clk 0:00:41.5]} 32... Rd8 {[%clk 0:00:04.9]} 33. Bxa7 {[%clk 0:00:41]} 33...
Nxg2 {[%clk 0:00:04.2]} 34. Kxg2 {[%clk 0:00:41.3]} 34... Bf6 {[%clk 0:00:03.2]}
35. Nc4 {[%clk 0:00:37.1]} 35... Ra8 {[%clk 0:00:02.9]} 36. Bxc5 {[%clk
0:00:35.7]} 36... Nb3 {[%clk 0:00:02.8]} 37. Bb6 {[%clk 0:00:34.9]} 1-0

[Event "*** Titled Tuesday Blitz"]
[Site "Chess.com"]
[Date "2020.05.05"]
[Round "8"]
[White "Richarzard69"]
[Black "Glidzhian_Gor"]
[Result "0-1"]
[WhiteElo "2314"]
[BlackElo "2495"]
[TimeControl "180+1"]
[EndTime "11:35:18 PDT"]
[Termination "Glidzhian_Gor won on time"]

1. Nf3 {[%clk 0:03:00.9]} 1... Nf6 {[%clk 0:02:53.6]} 2. c4 {[%clk 0:03:01.4]}
2... g6 {[%clk 0:02:54]} 3. Nc3 {[%clk 0:03:01.5]} 3... Bg7 {[%clk 0:02:54.9]}
4. e4 {[%clk 0:03:01.3]} 4... d6 {[%clk 0:02:55.8]} 5. d4 {[%clk 0:03:01.8]}
5... O-O {[%clk 0:02:56.1]} 6. Be2 {[%clk 0:03:02.3]} 6... Nc6 {[%clk
0:02:55.5]} 7. d5 {[%clk 0:02:59.3]} 7... Nb8 {[%clk 0:02:55.7]} 8. Be3 {[%clk
0:02:57.2]} 8... e6 {[%clk 0:02:55.9]} 9. Nd2 {[%clk 0:02:48.7]} 9... exd5
{[%clk 0:02:56]} 10. cxd5 {[%clk 0:02:46.5]} 10... a6 {[%clk 0:02:51.5]} 11. a4
{[%clk 0:02:42.8]} 11... Re8 {[%clk 0:02:49.9]} 12. O-O {[%clk 0:02:42.4]} 12...
Nbd7 {[%clk 0:02:48.9]} 13. f4 {[%clk 0:02:34.5]} 13... Nf8 {[%clk 0:02:41.8]}
14. Bf3 {[%clk 0:02:26.7]} 14... Rb8 {[%clk 0:02:39.1]} 15. a5 {[%clk
0:02:22.6]} 15... c6 {[%clk 0:02:31.9]} 16. Ba7 {[%clk 0:01:54.4]} 16... Ra8
{[%clk 0:02:31.4]} 17. Bb6 {[%clk 0:01:53.5]} 17... Qe7 {[%clk 0:02:31.8]} 18.
dxc6 {[%clk 0:01:40]} 18... bxc6 {[%clk 0:02:31.6]} 19. Nc4 {[%clk 0:01:14.4]}
19... d5 {[%clk 0:02:18.1]} 20. exd5 {[%clk 0:01:11.4]} 20... cxd5 {[%clk
0:02:18.2]} 21. Nxd5 {[%clk 0:00:56.3]} 21... Nxd5 {[%clk 0:02:17.8]} 22. Bxd5
{[%clk 0:00:54.8]} 22... Bb7 {[%clk 0:02:18.2]} 23. Bxb7 {[%clk 0:00:48.3]}
23... Qxb7 {[%clk 0:02:19.1]} 24. Nd6 {[%clk 0:00:46.6]} 24... Qc6 {[%clk
0:02:19.6]} 25. Nxe8 {[%clk 0:00:45.3]} 25... Rxe8 {[%clk 0:02:20.5]} 26. Qf3
{[%clk 0:00:36.4]} 26... Qb5 {[%clk 0:02:20.2]} 27. Rfe1 {[%clk 0:00:33.2]}
27... Ne6 {[%clk 0:02:20.2]} 28. f5 {[%clk 0:00:31.1]} 28... gxf5 {[%clk
0:02:20.3]} 29. Rf1 {[%clk 0:00:27.5]} 29... f4 {[%clk 0:02:20.6]} 30. Rae1
{[%clk 0:00:24.8]} 30... Rc8 {[%clk 0:02:13.9]} 31. Qg4 {[%clk 0:00:21.5]} 31...
Rc6 {[%clk 0:02:06.2]} 32. Kh1 {[%clk 0:00:20.9]} 32... h5 {[%clk 0:02:02.7]}
33. Qf3 {[%clk 0:00:16.3]} 33... Rc2 {[%clk 0:01:58.5]} 34. Qa8+ {[%clk
0:00:14.3]} 34... Bf8 {[%clk 0:01:57.6]} 35. Qe4 {[%clk 0:00:10.7]} 35... Qxb2
{[%clk 0:01:55.2]} 36. h3 {[%clk 0:00:08.3]} 36... Rc8 {[%clk 0:01:32.8]} 37.
Qf3 {[%clk 0:00:08.3]} 37... Qb5 {[%clk 0:01:32.1]} 38. Rb1 {[%clk 0:00:08]}
38... Qf5 {[%clk 0:01:31.4]} 39. Rfe1 {[%clk 0:00:08]} 39... Rc2 {[%clk
0:01:31.2]} 40. Rbd1 {[%clk 0:00:07.9]} 40... Qg6 {[%clk 0:01:30.9]} 41. Rd5
{[%clk 0:00:07.6]} 41... Be7 {[%clk 0:01:30.5]} 42. Rxh5 {[%clk 0:00:07.4]}
42... Bg5 {[%clk 0:01:28.5]} 43. Qg4 {[%clk 0:00:06.7]} 43... f3 {[%clk
0:01:11.3]} 44. gxf3 {[%clk 0:00:05.3]} 44... Rc6 {[%clk 0:01:03.5]} 45. Rxe6
{[%clk 0:00:04.7]} 45... Qb1+ {[%clk 0:00:53.1]} 46. Kh2 {[%clk 0:00:03.9]}
46... Rc2+ {[%clk 0:00:52.7]} 0-1